bitfinex/quotes_SOLUSD_20260201
["timestamp","ask_amount","ask_price","bid_price","bid_amount"]
[1769913309659,4.30493423,105.38,105.36,4.15337784]
[1769913309863,4.30493423,105.38,105.35,13.64548785]
[1769913310852,4.30493423,105.38,105.35,4.15337784]
[1769913311254,4.10684954,105.37,105.33,13.64699947]
[1769913312561,4.10684954,105.37,105.34,4.15337784]
[1769913313842,13.59728877,105.37,105.34,4.15337784]
[1769913314045,4.10684954,105.36,105.34,4.15337784]
[1769913314358,4.10684954,105.36,105.33,13.64699947]
[1769913315049,4.10684954,105.36,105.34,4.15337784]
[1769913315364,13.59728877,105.37,105.34,4.15337784]
[1769913320871,4.10684954,105.37,105.34,4.15337784]
[1769913324084,4.10684954,105.37,105.34,13.6463217]
[1769913324453,4.10684954,105.37,105.34,13.64639325]
[1769913325658,4.10684954,105.37,105.34,4.15337784]
[1769913326466,4.10684954,105.37,105.33,13.64688874]
[1769913327169,4.10684954,105.37,105.34,4.15337784]
[1769913328571,4.10684954,105.37,105.34,13.64564684]
[1769913328777,106.80684954,105.38,105.35,4.15337784]
[1769913330162,4.10684954,105.39,105.38,41.49999999]
[1769913330369,10.04572609,105.42,105.39,4.15337784]
[1769913330676,4.10684954,105.41,105.39,4.15337784]
[1769913331376,10.04572609,105.42,105.39,4.15337784]
[1769913332463,4.10684954,105.42,105.39,4.15337784]
[1769913334487,13.59275755,105.42,105.39,4.15337784]
[1769913334682,4.10684954,105.41,105.37,13.64324339]
[1769913335558,4.10684954,105.41,105.37,4.15337784]
[1769913336076,4.10684954,105.41,105.36,13.64457128]
[1769913336557,13.59436616,105.41,105.37,4.15337784]
[1769913336766,4.10684954,105.4,105.37,4.15337784]
[1769913343181,4.07093462,105.39,105.37,4.15337784]
[1769913343983,4.07093462,105.39,105.35,4.46924453]
[1769913344182,4.07093462,105.39,105.34,4.46924453]
[1769913345066,4.07093462,105.39,105.33,4.46924453]
[1769913345273,4.07093462,105.37,105.32,4.46924453]
[1769913346470,9.49126803,105.36,105.33,4.46924453]
[1769913346785,13.56220265,105.36,105.33,4.46924453]
[1769913347688,4.07093462,105.38,105.34,4.46924453]
[1769913347890,4.07093462,105.37,105.34,4.46924453]
[1769913349389,9.48984012,105.38,105.34,4.46924453]
[1769913349693,9.48984012,105.38,105.35,4.46924453]
[1769913349894,13.56077474,105.38,105.35,4.46924453]
[1769913351885,4.07093462,105.38,105.35,4.46924453]
[1769913355094,13.55903548,105.4,105.36,4.46924453]
[1769913355276,4.07093462,105.4,105.36,4.46924453]
[1769913356203,13.5587999,105.4,105.36,4.46924453]
[1769913356398,4.07093462,105.39,105.36,4.46924453]
[1769913364134,4.07093462,105.38,105.33,4.46924453]
[1769913364314,4.07093462,105.38,105.35,4.46924453]
[1769913364610,4.07093462,105.38,105.34,4.46924453]
[1769913364795,23.72141569,105.39,105.34,4.46924453]
[1769913365407,7.98800938,105.41,105.34,4.46924453]
[1769913365614,102.7,105.4,105.34,4.46924453]
[1769913365791,183.34516128,105.4,105.34,4.46924453]
[1769913366612,183.34516128,105.4,105.32,13.96373184]
[1769913366820,4.07093462,105.39,105.33,4.46924453]
[1769913367215,4.49323541,105.4,105.35,4.399212]
[1769913368419,4.49323541,105.4,105.36,13.89048003]
[1769913368606,4.49323541,105.4,105.37,4.399212]
[1769913369517,14.17858493,105.43,105.37,4.399212]
[1769913369894,4.49323541,105.42,105.37,4.399212]
[1769913371214,4.49323541,105.42,105.39,4.399212]
[1769913371896,4.49323541,105.42,105.38,13.88867869]
[1769913375596,4.49323541,105.42,105.39,4.399212]
[1769913376010,4.49323541,105.42,105.39,13.88775244]
[1769913376820,4.49323541,105.42,105.39,9.48854044]
[1769913377117,4.49323541,105.41,105.38,4.399212]
[1769913378594,4.49323541,105.41,105.39,4.399212]
[1769913378818,4.49323541,105.42,105.39,4.399212]
[1769913384222,13.97929775,105.42,105.39,4.399212]
[1769913384427,4.49323541,105.41,105.37,13.88913985]
[1769913384618,13.98006069,105.41,105.38,4.399212]
[1769913386731,4.49323541,105.4,105.36,13.89001859]
[1769913386904,4.41473259,105.4,105.37,4.399212]
[1769913388825,107.19323541,105.39,105.36,4.399212]
[1769913389827,107.19323541,105.39,105.36,13.88990892]
[1769913390121,68.1168625,105.39,105.36,13.88990892]
[1769913393105,63.62362709,105.39,105.37,4.399212]
[1769913393926,51.76613409,105.39,105.35,27.19418821]
[1769913394152,102.7,105.39,105.36,3.4654346]
[1769913394830,0.2,105.43,105.38,3.4654346]
[1769913395039,1e-08,105.43,105.4,3.4654346]
[1769913395214,1e-08,105.43,105.41,9.48676596]
[1769913395533,1e-08,105.43,105.41,33.20368086]
[1769913395926,9.68158725,105.47,105.42,3.4654346]
[1769913395927,0.2,105.47,105.42,3.4654346]
[1769913396118,0.2,105.47,105.43,3.4654346]
[1769913396934,0.1,105.48,105.45,3.4654346]
[1769913397137,0.1,105.53,105.48,33.1816458]
[1769913397317,0.1,105.53,105.5,3.4654346]
[1769913397822,1e-08,105.53,105.51,3.4654346]
[1769913398134,4.5,105.58,105.52,3.4654346]
[1769913398337,4.5,105.59,105.54,3.4654346]
[1769913398515,4.7,105.6,105.55,3.4654346]
[1769913398716,1e-08,105.6,105.57,3.4654346]
[1769913398921,1e-08,105.6,105.58,3.4654346]
[1769913399532,4.50000001,105.6,105.56,33.15649866]
[1769913399933,4.50000001,105.6,105.55,9.47401318]
[1769913400939,4.50000001,105.6,105.54,9.47476139]
[1769913401137,4.5,105.58,105.49,9.24416339]
[1769913401435,4.5,105.56,105.5,33.17434222]
[1769913402213,4.5,105.55,105.5,9.24416339]
[1769913402741,4.5,105.55,105.49,9.24416339]
[1769913403115,4.5,105.55,105.48,33.1816458]
[1769913403437,4.5,105.55,105.48,9.48047023]
[1769913404732,4.5,105.53,105.47,9.4813691]
[1769913405838,4.5,105.53,105.46,9.48205127]
[1769913406634,9.47687642,105.52,105.46,9.48205127]
[1769913406841,4.5,105.51,105.46,9.48205127]
[1769913408823,4.5,105.51,105.44,32.95371202]
[1769913408824,4.5,105.49,105.43,9.48462791]
[1769913409325,4.5,105.49,105.4,23.91796875]
[1769913409530,4.5,105.49,105.41,9.486621]
[1769913409729,4.5,105.48,105.4,0.2]
[1769913410735,4.5,105.43,105.4,0.2]
[1769913412825,4.5,105.42,105.37,9.49021002]
[1769913413035,4.5,105.42,105.36,9.49092569]
[1769913413360,4.5,105.42,105.35,9.49154319]
[1769913414826,4.4,105.4,105.35,9.49154319]
[1769913415833,4.4,105.4,105.33,2.66949034]
[1769913417155,4.4,105.4,105.34,42.46990858]
[1769913417354,4.5,105.42,105.36,9.24416339]
[1769913418745,4.5,105.42,105.37,9.24416339]
[1769913419240,4.5,105.4,105.32,26.36]
[1769913419550,4.5,105.4,105.37,9.49026787]
[1769913419950,4.5,105.41,105.37,33.21618606]
[1769913420153,4.5,105.43,105.37,42.46034945]
[1769913421151,4.5,105.43,105.37,33.21618606]
[1769913421364,4.5,105.43,105.37,42.46034945]
[1769913422068,4.5,105.42,105.37,33.21618606]
[1769913423964,4.5,105.41,105.37,9.49026787]
[1769913425367,4.5,105.42,105.37,33.21618606]
[1769913425554,4.5,105.42,105.37,42.46034945]
[1769913425761,4.5,105.41,105.36,33.21920249]
[1769913426064,4.5,105.4,105.36,9.49103241]
[1769913427168,4.5,105.42,105.36,42.46336588]
[1769913427668,4.5,105.42,105.37,9.24416339]
[1769913427959,4.5,105.42,105.38,33.21313341]
[1769913429153,4.5,105.42,105.38,9.48946669]
[1769913429463,4.5,105.41,105.38,9.48946669]
[1769913429852,4.28612769,105.39,105.32,4.37994894]
[1769913430067,4.28612769,105.39,105.33,4.37994894]
[1769913430252,4.28612769,105.39,105.34,4.37994894]
[1769913431960,4.28612769,105.41,105.37,4.37994894]
[1769913433074,4.28612769,105.42,105.37,4.37994894]
[1769913433267,4.28612769,105.43,105.38,13.62411233]
[1769913433475,4.28612769,105.45,105.39,4.37994894]
[1769913433668,4.28612769,105.42,105.37,4.37994894]
[1769913433865,13.77222048,105.42,105.37,13.86944548]
[1769913434467,13.77222048,105.42,105.38,4.37994894]
[1769913434869,4.28612769,105.42,105.38,4.37994894]
[1769913435577,13.77060978,105.44,105.38,4.37994894]
[1769913435959,13.77060978,105.44,105.37,42.45957812]
[1769913435960,4.28612769,105.44,105.4,4.37994894]
[1769913436666,13.76979837,105.45,105.4,4.37994894]
[1769913437062,4.28612769,105.43,105.37,4.37994894]
[1769913437268,4.28612769,105.44,105.39,4.37994894]
[1769913437972,4.28612769,105.44,105.4,9.48766603]
[1769913438175,4.28612769,105.44,105.4,13.86761497]
[1769913440271,4.28612769,105.43,105.39,4.37994894]
[1769913441685,4.28612769,105.43,105.4,4.37994894]
[1769913442183,13.77139211,105.43,105.4,4.37994894]
[1769913444284,46.29295033,105.43,105.4,4.37994894]
[1769913444682,4.28612769,105.45,105.4,4.37994894]
[1769913445086,4.28612769,105.45,105.41,4.37994894]
[1769913446573,4.28612769,105.45,105.42,4.37994894]
[1769913449379,4.28612769,105.47,105.43,4.37994894]
[1769913449682,13.76659792,105.48,105.43,4.37994894]
[1769913451392,13.76659792,105.48,105.44,4.37994894]
[1769913451994,46.28749704,105.49,105.44,4.37994894]
[1769913452174,4.28612769,105.5,105.45,4.37994894]
[1769913453287,13.76494834,105.5,105.45,13.86233379]
[1769913453476,13.76494834,105.5,105.46,4.37994894]
[1769913454393,4.28612769,105.49,105.46,4.37994894]
[1769913454590,4.28612769,105.49,105.45,4.37994894]
[1769913455693,13.76652288,105.49,105.45,4.37994894]
[1769913455879,4.28612769,105.48,105.43,4.37994894]
[1769913456387,4.28612769,105.48,105.42,4.37994894]
[1769913458597,4.12340473,105.46,105.4,13.64948613]
[1769913458797,4.12340473,105.46,105.4,4.16227723]
[1769913459897,4.12340473,105.44,105.4,4.16227723]
[1769913461897,9.48496632,105.43,105.4,4.16227723]
[1769913462088,13.60837105,105.43,105.4,4.16227723]
[1769913463194,4.40571057,105.42,105.38,4.40481962]
[1769913463402,4.40571057,105.41,105.37,4.40481962]
[1769913464001,13.89313243,105.41,105.37,4.40481962]
[1769913465708,4.40571057,105.4,105.37,4.40481962]
[1769913466484,13.89313243,105.41,105.37,4.40481962]
[1769913466882,9.48496632,105.43,105.38,4.40481962]
[1769913467685,13.89067689,105.43,105.38,4.40481962]
[1769913468005,13.89021165,105.44,105.38,4.40481962]
[1769913468193,13.89021165,105.44,105.4,4.40481962]
[1769913470910,13.88963894,105.45,105.41,4.40481962]
[1769913472505,4.40571057,105.44,105.41,4.40481962]
[1769913473419,13.89026704,105.44,105.41,4.40481962]
[1769913474909,13.88655083,105.48,105.42,4.40481962]
[1769913476203,13.88655083,105.48,105.43,4.40481962]
[1769913476804,4.40571057,105.47,105.43,4.40481962]
[1769913477913,13.8872547,105.47,105.43,13.88974423]
[1769913478798,13.8872547,105.47,105.44,4.40481962]
[1769913479215,13.88643878,105.48,105.44,4.40481962]
[1769913479416,4.40571057,105.48,105.44,4.40481962]
[1769913479797,13.88555615,105.49,105.44,4.40481962]
[1769913480010,4.40571057,105.49,105.46,4.40481962]
[1769913480212,9.47893203,105.5,105.46,4.40481962]
[1769913480717,13.8846426,105.5,105.46,4.40481962]
[1769913482217,13.8846426,105.5,105.46,13.88688964]
[1769913483513,13.8846426,105.5,105.46,4.40481962]
[1769913483900,4.40571057,105.49,105.44,4.40481962]
[1769913485219,36.92726879,105.49,105.44,4.40481962]
[1769913485415,9.48047023,105.48,105.44,4.40481962]
[1769913485623,13.8861808,105.48,105.44,4.40481962]
[1769913486721,4.40571057,105.47,105.44,4.40481962]
[1769913490502,13.872927,105.48,105.44,4.40481962]
[1769913491411,4.39245677,105.47,105.43,4.19236863]
[1769913493215,13.87438074,105.47,105.43,4.19236863]
[1769913495117,13.87438074,105.47,105.41,23.71651122]
[1769913495321,13.87438074,105.47,105.44,4.19236863]
[1769913496801,4.39245677,105.46,105.42,4.19236863]
[1769913497219,70.09936173,105.47,105.42,4.19236863]
[1769913497723,70.09936173,105.47,105.43,4.19236863]
[1769913499025,13.87496722,105.46,105.43,4.19236863]
[1769913499242,4.39245677,105.46,105.43,13.67726352]
[1769913499433,4.39245677,105.45,105.42,4.19236863]
[1769913500727,13.87474005,105.46,105.42,4.19236863]
[1769913501426,4.39245677,105.45,105.42,4.19236863]
[1769913503228,13.87586861,105.45,105.42,4.19236863]
[1769913504834,4.39245677,105.44,105.41,4.19236863]
[1769913506017,4.39245677,105.44,105.41,13.6790748]
[1769913508239,13.87610667,105.45,105.42,4.19236863]
[1769913509440,4.39245677,105.44,105.42,4.19236863]
[1769913510039,4.39245677,105.44,105.41,4.19236863]
[1769913510741,4.39245677,105.44,105.4,4.19236863]
[1769913511245,4.39245677,105.43,105.38,4.19236863]
[1769913511740,4.39245677,105.41,105.38,4.19236863]
[1769913513545,4.39245677,105.4,105.37,4.19236863]
[1769913515543,13.88018811,105.4,105.37,4.19236863]
[1769913517445,9.48717178,105.41,105.37,4.19236863]
[1769913517648,13.89019445,105.41,105.38,4.45149322]
[1769913518654,4.40302267,105.41,105.38,4.45149322]
[1769913521552,4.40302267,105.43,105.39,4.45149322]
[1769913522142,4.40302267,105.42,105.39,4.45149322]
[1769913523347,4.45879772,105.41,105.38,4.05556562]
[1769913523651,4.45879772,105.41,105.38,13.54458771]
[1769913528955,4.45879772,105.41,105.39,4.05556562]
[1769913529138,46.46544492,105.43,105.39,4.05556562]
[1769913529342,36.98035594,105.43,105.39,4.05556562]
[1769913530137,4.45879772,105.42,105.39,4.05556562]
[1769913530757,36.98035594,105.43,105.39,4.05556562]
[1769913531346,4.45879772,105.42,105.39,13.54337351]
[1769913534755,36.98035594,105.43,105.4,4.05556562]
[1769913536766,36.98035594,105.43,105.41,9.48676596]
[1769913538758,23.70748896,105.46,105.43,4.05556562]
[1769913538759,4.45879772,105.46,105.43,4.05556562]
[1769913538979,4.45879772,105.46,105.43,7.52023072]
[1769913539343,4.45879772,105.48,105.44,4.05556562]
[1769913539845,4.45879772,105.48,105.45,4.05556562]
[1769913540150,4.45879772,105.49,105.46,4.05556562]
[1769913540355,4.45879772,105.49,105.46,7.52023072]
[1769913540863,4.45879772,105.5,105.46,7.52023072]
[1769913541064,4.45879772,105.5,105.47,13.5367453]
[1769913541645,4.45879772,105.49,105.45,4.05556562]
[1769913542673,4.45879772,105.49,105.46,4.05556562]
[1769913544162,4.45879772,105.49,105.46,13.5375209]
[1769913549162,4.34371347,105.48,105.43,13.97420312]
[1769913549348,4.34371347,105.48,105.42,9.48562787]
[1769913550246,4.34371347,105.48,105.42,13.975269]
[1769913550446,4.34371347,105.48,105.44,4.48964113]
[1769913551267,4.34371347,105.47,105.44,4.48964113]
[1769913554673,13.82520795,105.47,105.43,4.48964113]
[1769913554865,4.34371347,105.46,105.43,4.48964113]
[1769913558052,4.34371347,105.48,105.44,4.48964113]
[1769913558264,4.34371347,105.48,105.45,4.48964113]
[1769913559365,13.82419539,105.48,105.45,4.48964113]
[1769913559974,4.34371347,105.48,105.45,13.97246289]
[1769913560662,13.82328557,105.49,105.46,4.48964113]
[1769913561063,4.34371347,105.51,105.47,4.48964113]
[1769913561261,4.34371347,105.51,105.48,13.97011136]
[1769913561576,4.34371347,105.5,105.47,13.97077049]
[1769913568178,4.34371347,105.51,105.48,4.48964113]
[1769913568773,4.44371347,105.54,105.49,7.95430623]
[1769913568976,4.44371347,105.54,105.51,4.48964113]
[1769913569164,4.44371347,105.54,105.52,4.48964113]
[1769913569165,0.1,105.54,105.52,4.48964113]
[1769913569965,0.1,105.54,105.52,13.96581983]
[1769913570274,0.1,105.56,105.53,4.48964113]
[1769913571173,4.44371347,105.59,105.55,4.4]
[1769913571569,0.1,105.59,105.56,4.4]
[1769913571873,0.1,105.59,105.57,4.4]
[1769913572077,0.1,105.59,105.57,13.8721642]
[1769913575074,0.1,105.59,105.58,4.4]
[1769913575282,1e-08,105.59,105.58,4.4]
[1769913576071,1e-08,105.59,105.58,7.85085328]
[1769913576882,15.38656581,105.64,105.59,4.4]
[1769913576883,10.26378479,105.64,105.59,4.4]
[1769913577181,10.26378479,105.64,105.61,4.27779401]
[1769913577573,5.92007132,105.64,105.61,4.27779401]
[1769913577974,4.51771049,105.65,105.61,4.27779401]
[1769913578279,13.98303496,105.65,105.61,4.27779401]
[1769913578482,4.18922619,105.64,105.61,4.27779401]
[1769913579173,4.18922619,105.63,105.57,13.74995183]
[1769913579367,4.18922619,105.63,105.57,4.27779401]
[1769913579678,4.18922619,105.63,105.55,13.75160595]
[1769913580180,4.18922619,105.62,105.54,13.75249178]
[1769913580381,4.18922619,105.62,105.54,9.47469777]
[1769913580972,4.18922619,105.62,105.53,13.75358835]
[1769913581172,4.18922619,105.6,105.53,13.75358835]
[1769913581567,4.18922619,105.6,105.54,4.27779401]
[1769913582289,4.45237258,105.58,105.54,4.27779401]
[1769913582463,4.45237258,105.58,105.52,13.87663917]
[1769913582669,4.45237258,105.58,105.51,13.87729743]
[1769913584289,4.45237258,105.56,105.51,13.87729743]
[1769913584491,4.45237258,105.56,105.5,13.87794194]
[1769913585485,4.45237258,105.56,105.51,9.47775149]
[1769913585679,4.45237258,105.56,105.51,13.87775149]
[1769913586279,13.92422227,105.58,105.54,4.4]
[1769913586473,4.45237258,105.57,105.54,4.4]
[1769913588403,4.45237258,105.57,105.52,31.54245022]
[1769913588698,4.45237258,105.57,105.53,4.4]
[1769913588880,4.45237258,105.56,105.51,7.85085328]
[1769913589192,4.45237258,105.56,105.51,4.4]
[1769913589793,4.45237258,105.56,105.51,13.877234]
[1769913590576,4.45237258,105.55,105.51,13.877234]
[1769913591292,4.45237258,105.55,105.52,4.4]
[1769913591590,4.45237258,105.55,105.52,13.87681297]
[1769913593199,4.45237258,105.55,105.51,13.87752531]
[1769913593597,4.45237258,105.54,105.49,13.87957152]
[1769913596180,4.45237258,105.53,105.49,13.87957152]
[1769913596888,13.92832843,105.54,105.5,4.4]
[1769913597085,4.45237258,105.54,105.5,4.4]
[1769913597692,4.45237258,105.54,105.5,13.65465245]
[1769913597995,4.45237258,105.54,105.51,4.4]
[1769913598183,4.45237258,105.54,105.51,13.87749595]
[1769913601989,32.4739308,105.55,105.52,4.4]
[1769913604194,4.45237258,105.57,105.53,4.4]
[1769913604393,4.45237258,105.57,105.54,4.4]
[1769913605206,4.45237258,105.57,105.54,13.87463147]
[1769913605509,4.45237258,105.58,105.54,13.87463147]
[1769913606105,4.45237258,105.58,105.53,4.4]
[1769913606608,4.45237258,105.58,105.53,13.87593684]
[1769913607397,4.20640764,105.57,105.53,13.87593684]
[1769913608513,13.67895171,105.57,105.54,4.2449747]
[1769913608704,4.20640764,105.56,105.53,13.72091154]
[1769913609109,13.67895171,105.57,105.54,4.2449747]
[1769913609498,13.67895171,105.57,105.53,4.2449747]
[1769913610008,4.20640764,105.56,105.53,4.2449747]
[1769913610709,4.20640764,105.56,105.52,9.47687642]
[1769913611095,4.20640764,105.56,105.51,9.47741627]
[1769913611412,4.20640764,105.56,105.5,13.72322673]
[1769913611609,33.15351404,105.57,105.5,13.72322673]
[1769913611610,13.68059049,105.55,105.51,4.2449747]
[1769913611803,4.20640764,105.55,105.51,4.2449747]
[1769913613410,4.20640764,105.55,105.52,9.47687642]
[1769913613611,4.20640764,105.55,105.52,13.72185112]
[1769913613923,4.20640764,105.55,105.51,13.72238914]
[1769913617601,4.20640764,105.56,105.53,4.2449747]
[1769913617797,32.22796586,105.58,105.55,4.2449747]
[1769913618293,32.22796586,105.58,105.54,4.2449747]
[1769913618294,4.20640764,105.57,105.54,4.2449747]
[1769913618710,32.22796586,105.58,105.54,4.2449747]
[1769913619818,4.20640764,105.57,105.54,13.71946385]
[1769913620405,4.20640764,105.57,105.53,13.72052827]
[1769913621400,4.20640764,105.56,105.53,13.72052827]
[1769913621602,4.20640764,105.56,105.52,13.72156937]
[1769913623099,4.20640764,105.57,105.54,4.2449747]
[1769913623302,41.69974807,105.58,105.54,4.2449747]
[1769913623502,4.20640764,105.57,105.52,7.70002292]
[1769913623724,4.20640764,105.57,105.53,4.2449747]
[1769913624706,4.20640764,105.56,105.52,4.2449747]
[1769913625108,4.20640764,105.56,105.52,13.72137879]
[1769913626023,4.20640764,105.56,105.53,9.47593294]
[1769913627629,4.20640764,105.56,105.52,13.72141566]
[1769913629228,4.20640764,105.55,105.52,13.72141566]
[1769913630023,4.20640764,105.55,105.51,9.47739283]
[1769913631226,4.20640764,105.54,105.51,9.47739283]
[1769913631425,4.20640764,105.54,105.51,13.72236753]
[1769913634638,4.20640764,105.54,105.5,4.2449747]
[1769913635439,4.20640764,105.53,105.49,17.17959444]
[1769913635730,4.20640764,105.53,105.49,13.72454622]
[1769913640836,4.20640764,105.53,105.5,4.10930865]
[1769913641212,4.20640764,105.53,105.5,13.58791701]
[1769913642617,4.20640764,105.53,105.49,13.58057623]
[1769913646340,4.20640764,105.53,105.5,4.10147965]
[1769913650338,4.13683722,105.53,105.5,4.10147965]
[1769913651527,37.49618387,105.55,105.51,4.10147965]
[1769913651849,5.92481625,105.59,105.54,4.10147965]
[1769913652155,5.92481625,105.59,105.55,4.10147965]
[1769913652321,4.45230084,105.58,105.55,4.10147965]
[1769913653126,4.45230084,105.58,105.54,13.57619517]
[1769913653953,4.45230084,105.57,105.54,13.57619517]
[1769913655427,4.37230086,105.57,105.55,4.10147965]
[1769913656240,4.37230086,105.57,105.54,13.57619517]
[1769913656948,9.47240931,105.57,105.52,13.57785536]
[1769913657326,4.45230084,105.56,105.52,13.57785536]
[1769913661535,4.45230084,105.56,105.53,4.10147965]
[1769913662760,4.45230084,105.55,105.51,9.47742913]
[1769913662943,4.45230084,105.55,105.5,13.57972532]
[1769913663347,4.45230084,105.54,105.5,13.57972532]
[1769913666345,4.45230084,105.53,105.5,13.57972532]
[1769913682274,4.09234934,105.54,105.51,4.23316467]
[1769913683673,4.09234934,105.54,105.5,37.4080928]
[1769913689780,4.09234934,105.54,105.51,4.23316467]
[1769913689981,4.09234934,105.54,105.5,37.4080928]
[1769913690167,4.09234934,105.54,105.51,4.23316467]
[1769913691477,4.09234934,105.54,105.5,33.17492813]
[1769913691662,4.09234934,105.54,105.5,37.4080928]
[1769913697064,4.09234934,105.54,105.51,4.11949656]
[1769913697264,32.27307441,105.55,105.51,4.11949656]
[1769913698082,10.17633244,105.59,105.54,4.11949656]
[1769913698386,10.17633244,105.59,105.55,4.11949656]
[1769913698584,10.17633244,105.59,105.56,13.59278189]
[1769913698768,5.92481625,105.59,105.56,13.59278189]
[1769913698972,10.17633244,105.59,105.56,4.11949656]
[1769913699283,4.25151619,105.58,105.55,13.59330809]
[1769913699477,4.25151619,105.58,105.56,4.11949656]
[1769913700900,5.92481625,105.59,105.57,4.11949656]
[1769913701688,10.17633244,105.59,105.57,4.11949656]
[1769913702693,4.42866883,105.58,105.55,9.47381973]
[1769913703191,4.42866883,105.58,105.55,4.25685388]
[1769913704275,10.35348508,105.59,105.55,4.25685388]
[1769913704471,4.42866883,105.58,105.55,4.25685388]
[1769913705194,4.42866883,105.58,105.55,13.73050824]
[1769913709572,10.35348508,105.59,105.56,4.25685388]
[1769913712996,10.35348508,105.59,105.56,13.72957725]
[1769913714089,5.92481625,105.59,105.57,4.25685388]
[1769913714400,5.92481625,105.59,105.58,4.25685388]
[1769913714583,5.92481625,105.59,105.57,7.71159337]
[1769913715294,5.92481625,105.59,105.57,4.25685388]
[1769913715998,5.92481625,105.59,105.58,4.25685388]
[1769913717483,5.92481625,105.59,105.57,13.72852133]
[1769913717879,5.92481625,105.59,105.57,9.47166745]
[1769913718088,4.42866883,105.6,105.57,9.47166745]
[1769913718089,4.42866883,105.6,105.58,4.25685388]
[1769913718290,4.42866883,105.6,105.57,13.72852133]
[1769913721782,4.42866883,105.6,105.58,4.25685388]
[1769913722499,4.42866883,105.6,105.56,13.72967484]
[1769913722706,4.42866883,105.59,105.56,13.72967484]
[1769913722887,4.42866883,105.59,105.57,4.25685388]
[1769913723083,13.89875894,105.6,105.57,4.25685388]
[1769913723285,4.42866883,105.6,105.57,4.25685388]
[1769913724502,4.42866883,105.59,105.56,13.72967484]
[1769913726498,4.42866883,105.6,105.57,4.25685388]
[1769913729420,4.42866883,105.6,105.57,13.72904432]
[1769913729606,4.42866883,105.6,105.58,4.48385409]
[1769913729607,4.06659076,105.6,105.58,4.48385409]
[1769913729911,4.06659076,105.6,105.57,13.95604453]
[1769913731313,70.66838006,105.62,105.58,4.48385409]
[1769913731606,61.20000001,105.62,105.58,4.48385409]
[1769913732814,61.20000001,105.62,105.58,13.95449354]
[1769913733406,4.06659076,105.61,105.58,13.95449354]
[1769913733919,4.06659076,105.62,105.59,4.48385409]
[1769913734210,0.3284843,105.65,105.62,4.48385409]
[1769913734394,0.3284843,105.65,105.63,7.93859358]
[1769913734797,0.3284843,105.65,105.63,17.40473351]
[1769913735113,0.3284843,105.65,105.63,13.94999402]
[1769913735802,0.3284843,105.65,105.64,4.48385409]
[1769913736199,4.16659076,105.67,105.64,4.48385409]
[1769913736405,4.16659076,105.67,105.65,4.48385409]
[1769913736806,10.20528227,105.68,105.66,13.9481736]
[1769913737201,0.1,105.68,105.66,13.9481736]
[1769913737400,8.72677948,105.71,105.66,13.9481736]
[1769913738316,4.06659073,105.67,105.66,13.9481736]
[1769913739100,8.72677948,105.71,105.66,13.9481736]
[1769913739519,4.06659076,105.7,105.65,13.94874433]
[1769913739916,4.06659076,105.7,105.64,13.94955674]
[1769913740909,4.06659076,105.7,105.65,4.48385409]
[1769913741308,4.06659076,105.68,105.65,4.48385409]
[1769913741516,4.06659076,105.68,105.65,13.94864136]
[1769913743102,4.06659076,105.68,105.65,4.48385409]
[1769913743805,13.52916036,105.68,105.65,4.48385409]
[1769913745419,4.06659076,105.68,105.65,4.48385409]
[1769913745924,4.06659076,105.68,105.64,13.94953364]
[1769913746099,13.52911977,105.68,105.64,13.94953364]
[1769913746304,13.52911977,105.68,105.65,4.48385409]
[1769913748522,4.06659076,105.68,105.65,4.48385409]
[1769913750526,4.06659076,105.68,105.64,9.46567955]
[1769913750731,4.06659076,105.68,105.65,4.48385409]
[1769913751425,4.06659076,105.68,105.64,13.94953364]
[1769913751621,4.06659076,105.68,105.65,4.48385409]
[1769913755309,4.02592485,105.67,105.58,4.48385409]
[1769913756328,4.02592485,105.65,105.59,9.47011855]
[1769913756528,4.02592485,105.65,105.6,4.48385409]
[1769913757418,13.49203617,105.64,105.6,4.48385409]
[1769913758225,13.49159468,105.65,105.61,4.19548322]
[1769913758515,4.02592485,105.65,105.61,4.19548322]
[1769913758723,4.02592485,105.66,105.61,4.19548322]
[1769913759025,4.02592485,105.66,105.62,4.19548322]
[1769913759438,13.49036312,105.66,105.62,13.66334959]
[1769913759732,13.49036312,105.66,105.63,4.19548322]
[1769913759936,13.49036312,105.66,105.62,13.66334959]
[1769913759937,4.02592485,105.65,105.62,13.66334959]
[1769913760233,4.02592485,105.65,105.63,4.19548322]
[1769913760834,4.02592485,105.66,105.63,4.19548322]
[1769913762030,13.49027439,105.66,105.63,4.19548322]
[1769913762628,4.02592485,105.65,105.62,9.46786637]
[1769913762823,4.02592485,105.65,105.61,13.81560788]
[1769913764240,9.46535523,105.65,105.58,0.93811825]
[1769913764415,4.32735334,105.64,105.58,0.93811825]
[1769913765230,4.32735334,105.64,105.6,23.67424242]
[1769913766322,4.32735334,105.64,105.61,4.34715593]
[1769913766543,4.32735334,105.64,105.61,13.81594335]